bitfinex/quotes_BTCUSD_20250623
["timestamp","ask_amount","ask_price","bid_price","bid_amount"]
[1750716004681,7.59403866,103870.0,103860.0,1.8267599]
[1750716009420,7.59403866,103870.0,103860.0,1.7767599]
[1750716009644,7.59403866,103870.0,103860.0,1.8267599]
[1750716009831,7.59403866,103870.0,103860.0,1.7767599]
[1750716010041,7.59403866,103870.0,103860.0,1.8267599]
[1750716011174,7.59403866,103870.0,103860.0,1.8767599]
[1750716011665,7.58577866,103870.0,103860.0,1.8767599]
[1750716012020,7.57947866,103870.0,103860.0,1.8767599]
[1750716012249,7.4831434,103870.0,103860.0,1.8767599]
[1750716012578,7.38680814,103870.0,103860.0,1.8767599]
[1750716012784,7.36504815,103870.0,103860.0,1.8767599]
[1750716012999,7.35987815,103870.0,103860.0,1.8767599]
[1750716013205,7.26354289,103870.0,103860.0,1.8767599]
[1750716013412,7.21537526,103870.0,103860.0,1.8767599]
[1750716013600,7.06855526,103870.0,103860.0,1.8767599]
[1750716013811,7.02808631,103870.0,103860.0,1.8767599]
[1750716014031,6.97991868,103870.0,103860.0,1.8767599]
[1750716014243,6.93175105,103870.0,103860.0,1.8767599]
[1750716014645,6.88358342,103870.0,103860.0,1.8767599]
[1750716014827,6.86720343,103870.0,103860.0,1.8767599]
[1750716015275,6.85761343,103870.0,103860.0,1.8767599]
[1750716015453,6.8094458,103870.0,103860.0,1.8767599]
[1750716015667,6.7756842,103870.0,103860.0,1.8767599]
[1750716015830,6.74481421,103870.0,103860.0,1.8767599]
[1750716016248,6.69665224,103870.0,103860.0,1.8767599]
[1750716016453,6.64849027,103870.0,103860.0,1.8767599]
[1750716017541,6.63169027,103870.0,103860.0,1.8767599]
[1750716019192,6.63169027,103870.0,103860.0,1.04588528]
[1750716019383,6.63169027,103870.0,103860.0,1.8767599]
[1750716019587,6.59813512,103870.0,103860.0,1.8767599]
[1750716019984,6.59353512,103870.0,103860.0,1.8767599]
[1750716020425,6.57173512,103870.0,103860.0,1.8767599]
[1750716024288,6.55216512,103870.0,103860.0,1.8757599]
[1750716025300,6.53773512,103870.0,103860.0,1.8757599]
[1750716025758,6.48957312,103870.0,103860.0,1.8757599]
[1750716027014,6.46498072,103870.0,103860.0,1.8757599]
[1750716027665,6.45534832,103870.0,103860.0,1.8752399]
[1750716028752,6.45534832,103870.0,103860.0,1.04436528]
[1750716028968,6.45534832,103870.0,103860.0,1.8752399]
[1750716030555,6.44571592,103870.0,103860.0,1.8752399]
[1750716030972,6.43608352,103870.0,103860.0,1.8752399]
[1750716031472,6.43608352,103870.0,103860.0,1.5713599]
[1750716031724,6.43608352,103870.0,103860.0,1.6213599]
[1750716031988,6.49888352,103870.0,103860.0,1.7751999]
[1750716032250,6.49888352,103870.0,103860.0,1.8251999]
[1750716032488,6.49888352,103870.0,103860.0,1.7751999]
[1750716032730,6.49888352,103870.0,103860.0,1.8251999]
[1750716033386,6.49888352,103870.0,103860.0,1.8751999]
[1750716033597,6.49888352,103870.0,103860.0,1.8251999]
[1750716034427,6.49888352,103870.0,103860.0,1.56935166]
[1750716034633,6.49888352,103870.0,103860.0,2.16262485]
[1750716034836,6.49888352,103870.0,103860.0,1.77319166]
[1750716035655,6.49888352,103870.0,103860.0,1.77315166]
[1750716035861,6.28577036,103870.0,103860.0,1.77315166]
[1750716037275,6.28577036,103870.0,103860.0,1.56935166]
[1750716037474,6.28577036,103870.0,103860.0,1.77315166]
[1750716038080,6.28577036,103870.0,103860.0,2.16258485]
[1750716042996,6.28577036,103870.0,103860.0,2.16238485]
[1750716043197,6.28577036,103870.0,103860.0,1.77295166]
[1750716043512,6.28577036,103870.0,103860.0,2.16238485]
[1750716043716,6.28577036,103870.0,103860.0,1.77295166]
[1750716043922,6.06246211,103870.0,103860.0,1.77295166]
[1750716044335,6.06246211,103870.0,103860.0,2.16238485]
[1750716047309,6.06246211,103870.0,103860.0,2.16234485]
[1750716048162,5.89388771,103870.0,103860.0,3.38064442]
[1750716048365,5.89388771,103870.0,103860.0,1.8745478]
[1750716048728,5.87552771,103870.0,103860.0,1.8745478]
[1750716049377,5.82735933,103870.0,103860.0,1.8745478]
[1750716049580,5.77919095,103870.0,103860.0,1.8745478]
[1750716049796,5.73102257,103870.0,103860.0,2.5745478]
[1750716049984,5.68559257,103870.0,103860.0,2.5745478]
[1750716050186,5.63877257,103870.0,103860.0,2.5745478]
[1750716050393,5.59144257,103870.0,103860.0,2.5745478]
[1750716052343,5.54327419,103870.0,103860.0,2.5745478]
[1750716052474,5.53163419,103870.0,103860.0,2.5745478]
[1750716052674,5.52581419,103870.0,103860.0,2.5745478]
[1750716052880,5.51999419,103870.0,103860.0,2.5745478]
[1750716053093,5.4681042,103870.0,103860.0,2.5745478]
[1750716053531,5.41993582,103870.0,103860.0,2.5745478]
[1750716054334,5.41291582,103870.0,103860.0,2.5745478]
[1750716054512,4.33588919,103870.0,103860.0,3.13979906]
[1750716054741,4.14971258,103870.0,103860.0,3.62742906]
[1750716054942,4.09191817,103870.0,103860.0,3.77742906]
[1750716055201,3.99559415,103870.0,103860.0,3.77742906]
[1750716055420,3.93679974,103870.0,103860.0,3.66714606]
[1750716055634,3.93579974,103870.0,103860.0,3.65814606]
[1750716055835,3.92716734,103870.0,103860.0,3.59171606]
[1750716056041,3.92816734,103870.0,103860.0,3.60071606]
[1750716056245,3.91653494,103870.0,103860.0,3.58471606]
[1750716056450,3.91753494,103870.0,103860.0,3.59471606]
[1750716056622,3.90890254,103870.0,103860.0,3.60871606]
[1750716057039,3.85110813,103870.0,103860.0,3.60871606]
[1750716057242,3.33136803,103870.0,103860.0,3.60871606]
[1750716057448,3.27357362,103870.0,103860.0,3.60871606]
[1750716057662,3.22541161,103870.0,103860.0,3.60871606]
[1750716057871,3.1194572,103870.0,103860.0,3.60871606]
[1750716058070,3.07129519,103870.0,103860.0,3.60871606]
[1750716058286,2.99927078,103870.0,103860.0,3.60871606]
[1750716058480,2.95110877,103870.0,103860.0,3.60871606]
[1750716058624,2.89331436,103870.0,103860.0,3.60871606]
[1750716058821,2.70025895,103870.0,103860.0,3.85871606]
[1750716059031,2.62756454,103870.0,103860.0,3.88371606]
[1750716059242,2.52318342,103870.0,103860.0,3.88371606]
[1750716059451,2.417227,103870.0,103860.0,3.88371606]
[1750716059651,2.36906499,103870.0,103860.0,3.88371606]
[1750716059856,2.31127976,103870.0,103860.0,3.88371606]
[1750716060080,2.2631254,103870.0,103860.0,3.88371606]
[1750716060281,1.78191644,103870.0,103860.0,3.88371606]
[1750716060728,1.72033265,103870.0,103860.0,3.88371606]
[1750716060902,1.71070178,103870.0,103860.0,3.88371606]
[1750716061097,1.71070178,103870.0,103860.0,3.68015606]
[1750716061302,1.70107091,103870.0,103860.0,3.88359606]
[1750716061520,1.65291655,103870.0,103860.0,3.88359606]
[1750716061732,1.59513132,103870.0,103860.0,3.88359606]
[1750716061969,1.4988226,103870.0,103860.0,3.88359606]
[1750716062174,1.44103737,103870.0,103860.0,3.88359606]
[1750716062395,1.34472865,103870.0,103860.0,3.88359606]
[1750716062596,1.28694342,103870.0,103860.0,3.88359606]
[1750716062771,1.23878906,103870.0,103860.0,3.88359606]
[1750716062978,1.13284947,103870.0,103860.0,3.88359606]
[1750716063195,1.08469511,103870.0,103860.0,3.88359606]
[1750716063387,1.02690988,103870.0,103860.0,3.88359606]
[1750716063589,0.93060116,103870.0,103860.0,3.88359606]
[1750716063793,0.87281593,103870.0,103860.0,3.88359606]
[1750716063948,0.77650721,103870.0,103860.0,3.88359606]
[1750716064158,0.71872198,103870.0,103860.0,3.88359606]
[1750716064361,0.67056762,103870.0,103860.0,3.88359606]
[1750716064577,0.61278239,103870.0,103860.0,3.88359606]
[1750716064783,0.1412043,103870.0,103860.0,3.88359606]
[1750716064968,0.13157343,103870.0,103860.0,3.88359606]
[1750716065369,0.0737882,103870.0,103860.0,3.70543443]
[1750716065578,0.05778524,103870.0,103860.0,3.70543443]
[1750716065791,0.04815461,103870.0,103860.0,3.70543443]
[1750716065990,0.04815461,103870.0,103860.0,3.34957038]
[1750716066361,0.03852398,103870.0,103860.0,3.34957038]
[1750716066710,0.02889335,103870.0,103860.0,3.49957038]
[1750716067142,0.01926272,103870.0,103860.0,3.49957038]
[1750716067514,0.00963209,103870.0,103860.0,3.49957038]
[1750716067977,0.0641,103900.0,103890.0,0.68144532]
[1750716068183,0.0641,103900.0,103890.0,1.57216876]
[1750716068184,0.06414644,103900.0,103890.0,1.57216876]
[1750716068626,0.0041,103910.0,103900.0,0.62590642]
[1750716068827,0.0041,103910.0,103900.0,1.62791286]
[1750716068960,0.0041,103910.0,103900.0,1.53006286]
[1750716069159,0.0041,103910.0,103900.0,1.44847286]
[1750716069394,0.0041,103910.0,103900.0,2.14847286]
[1750716069765,0.0632,103920.0,103910.0,0.87588512]
[1750716069970,0.06324639,103920.0,103910.0,1.53540856]
[1750716071080,0.06324639,103920.0,103910.0,2.23540856]
[1750716071423,0.06324639,103920.0,103910.0,2.23840856]
[1750716072167,0.06324639,103920.0,103910.0,2.03504856]
[1750716072369,0.06324639,103920.0,103910.0,2.23936856]
[1750716072911,0.06324639,103920.0,103910.0,1.02564366]
[1750716073127,0.06324639,103920.0,103910.0,1.22880366]
[1750716073376,0.41911044,103920.0,103910.0,0.52880366]
[1750716073581,0.41911044,103920.0,103910.0,0.88334451]
[1750716073787,0.06324639,103920.0,103910.0,0.52880366]
[1750716074000,0.06324639,103920.0,103910.0,0.54034451]
[1750716074200,0.06324639,103920.0,103910.0,0.88034451]
[1750716074409,0.06324639,103920.0,103910.0,0.90926851]
[1750716074827,0.06324639,103920.0,103910.0,0.90826851]
[1750716075233,0.06724639,103920.0,103910.0,0.90826851]
[1750716076309,0.42311044,103920.0,103910.0,0.90826851]
[1750716076923,0.42311044,103920.0,103910.0,0.93755471]
[1750716083885,0.06724639,103920.0,103910.0,0.59755471]
[1750716084707,0.42311044,103920.0,103910.0,0.59755471]
[1750716086811,0.06724639,103920.0,103910.0,0.59755471]
[1750716091392,0.06724639,103920.0,103910.0,0.59739471]
[1750716093775,0.06724639,103920.0,103910.0,0.39439471]
[1750716093776,0.42311044,103920.0,103910.0,0.39439471]
[1750716093967,0.42311044,103920.0,103910.0,0.59735471]
[1750716095280,0.42311044,103920.0,103910.0,0.42249386]
[1750716095495,0.0644,103910.0,103900.0,0.19249278]
[1750716095704,0.0644,103900.0,103890.0,0.20213669]
[1750716095923,0.7117281,103900.0,103880.0,0.51176503]
[1750716096154,0.7761281,103890.0,103880.0,0.26403189]
[1750716096366,0.7117281,103890.0,103880.0,0.20215605]
[1750716096572,0.7761281,103890.0,103880.0,0.36243623]
[1750716096784,0.7761281,103890.0,103880.0,0.35280984]
[1750716097001,0.7761281,103890.0,103880.0,0.19252984]
[1750716097222,0.0644,103880.0,103870.0,0.24481569]
[1750716097443,0.42026405,103880.0,103870.0,0.23518837]
[1750716097658,0.032,103870.0,103860.0,0.21202295]
[1750716097867,0.42026405,103870.0,103860.0,0.20239525]
[1750716098073,0.42026405,103870.0,103860.0,0.21202341]
[1750716098278,0.42026405,103870.0,103860.0,0.20239525]
[1750716098485,0.42026405,103870.0,103860.0,0.21206985]
[1750716098700,0.42026405,103870.0,103860.0,0.20244169]
[1750716099431,0.7761281,103870.0,103860.0,0.2024416]
[1750716099637,0.42026405,103870.0,103860.0,0.19381335]
[1750716099846,0.42026405,103870.0,103860.0,0.00124644]
[1750716100056,0.7761281,103870.0,103860.0,0.00124644]
[1750716100475,0.7761281,103870.0,103860.0,0.19281335]
[1750716100686,0.7771281,103870.0,103860.0,0.19281335]
[1750716100897,0.42126405,103870.0,103860.0,0.19281335]
[1750716101286,0.42126405,103870.0,103860.0,0.20244169]
[1750716101519,0.42226405,103870.0,103860.0,0.19281335]
[1750716101934,0.42226405,103870.0,103860.0,0.20244169]
[1750716102139,0.42226405,103870.0,103860.0,0.19281335]
[1750716102942,0.42226405,103870.0,103860.0,0.20244169]
[1750716103769,0.42226405,103870.0,103860.0,0.21206994]
[1750716104811,0.42226405,103870.0,103860.0,0.20244169]
[1750716105545,0.42226405,103870.0,103860.0,0.19281335]
[1750716105944,0.42226405,103870.0,103860.0,0.2024416]
[1750716106416,0.42226405,103870.0,103860.0,0.21206976]
[1750716106828,0.42226405,103870.0,103860.0,0.20244151]
[1750716107376,0.42226405,103870.0,103860.0,0.2024416]
[1750716107625,0.42226405,103870.0,103860.0,0.21206976]
[1750716109059,0.42226405,103870.0,103860.0,0.22169782]
[1750716109250,0.42226405,103870.0,103860.0,0.21206976]
[1750716109715,0.42226405,103870.0,103860.0,0.22169782]
[1750716110191,0.42226405,103870.0,103860.0,0.21206976]
[1750716111442,0.42226405,103870.0,103860.0,0.2024416]
[1750716111576,0.42226405,103870.0,103860.0,0.21206976]
[1750716111976,0.42226405,103870.0,103860.0,0.22169782]
[1750716112289,0.42226405,103870.0,103860.0,0.23132579]
[1750716112499,0.42226405,103870.0,103860.0,0.22169782]
[1750716112721,0.0664,103870.0,103860.0,0.2313256]
[1750716112924,0.42226405,103870.0,103860.0,0.2313257]
[1750716113081,0.42226405,103870.0,103860.0,0.24095348]
[1750716113283,0.0664,103870.0,103860.0,0.23132523]
[1750716113486,0.42226405,103870.0,103860.0,0.24095292]
[1750716113724,0.0664,103870.0,103860.0,0.34125231]
[1750716114190,0.0664,103870.0,103860.0,0.50149231]
[1750716117058,0.0664,103870.0,103860.0,0.51603316]
[1750716117582,0.0654,103870.0,103860.0,0.51603316]
[1750716117791,0.0644,103870.0,103860.0,0.51603316]
[1750716118022,0.0644,103870.0,103860.0,0.51703316]
[1750716125449,0.42026405,103870.0,103860.0,0.51703316]
[1750716126947,0.42026405,103870.0,103860.0,0.51604878]
[1750716127149,0.42026405,103870.0,103860.0,0.47352878]
[1750716127361,0.42026405,103870.0,103860.0,0.00124644]
[1750716127572,0.42696136,103870.0,103860.0,0.16140644]
[1750716127781,0.42696136,103870.0,103860.0,0.00124644]
[1750716128188,0.42696136,103870.0,103860.0,0.01087478]
[1750716128439,0.54425491,103870.0,103860.0,0.02050303]
[1750716128651,0.54425491,103870.0,103860.0,0.2226981]
[1750716130356,0.4808971,103870.0,103860.0,0.21306994]
[1750716131554,0.4808971,103870.0,103860.0,0.01087478]
[1750716131761,0.48759448,103870.0,103860.0,0.21306994]
[1750716132326,0.50947189,103870.0,103860.0,0.2226981]
[1750716132738,0.50947189,103870.0,103860.0,0.23232616]
[1750716132955,0.51616937,103870.0,103860.0,0.23232616]
[1750716133406,0.50947189,103870.0,103860.0,0.23232616]
[1750716133580,0.50947189,103870.0,103860.0,0.2226981]
[1750716134441,0.50947189,103870.0,103860.0,0.21306994]
[1750716134645,0.50947189,103870.0,103860.0,0.2226981]
[1750716135063,0.50947189,103870.0,103860.0,0.23232616]
[1750716135697,0.50947189,103870.0,103860.0,0.2226981]
[1750716137459,0.50947189,103870.0,103860.0,0.23232616]
[1750716138101,0.50947189,103870.0,103860.0,0.24195404]
[1750716138301,0.50947189,103870.0,103860.0,0.24195348]
[1750716138479,0.50947189,103870.0,103860.0,0.22269782]
[1750716138701,0.50947189,103870.0,103860.0,0.21306976]
[1750716138908,0.50947189,103870.0,103860.0,0.22269782]
[1750716139113,0.50947189,103870.0,103860.0,0.23232579]
[1750716139330,0.47169822,103870.0,103860.0,0.23232579]
[1750716139988,0.47169822,103870.0,103860.0,0.22269782]
[1750716140193,0.47169822,103870.0,103860.0,0.24195357]
[1750716140672,0.47169822,103870.0,103860.0,0.24195348]
[1750716140904,0.44312343,103870.0,103860.0,0.24195348]
[1750716141389,0.08725938,103870.0,103860.0,0.34225287]
[1750716143228,0.26079318,103880.0,103870.0,0.2214295]
[1750716143424,0.54995491,103890.0,103880.0,0.21178235]
[1750716143650,0.54995491,103890.0,103880.0,0.22140837]
[1750716143875,0.38991491,103890.0,103880.0,0.21178235]
[1750716144098,0.38991491,103890.0,103880.0,0.21178244]
[1750716144326,0.34,103890.0,103880.0,0.22140856]
[1750716144603,0.34,103890.0,103880.0,0.23103366]
[1750716144604,0.35586405,103890.0,103880.0,0.23103366]
[1750716144822,0.35586405,103890.0,103880.0,0.21940801]
[1750716144823,0.35986405,103890.0,103880.0,0.21940801]
[1750716145457,0.35986405,103890.0,103880.0,0.20978217]
[1750716145683,0.36286405,103890.0,103880.0,0.20978217]
[1750716146095,0.36286405,103890.0,103880.0,0.20978254]
[1750716146234,0.42586405,103890.0,103880.0,0.20978254]
[1750716146444,0.42586405,103890.0,103880.0,0.21940866]
[1750716146801,0.07,103890.0,103880.0,0.21940866]
[1750716147000,0.42586405,103890.0,103880.0,0.2290345]
[1750716147719,0.42586405,103890.0,103880.0,0.22903468]
[1750716147923,0.42586405,103890.0,103880.0,0.23866061]
[1750716148102,0.42586405,103890.0,103880.0,0.22903468]
[1750716148731,0.42586405,103890.0,103880.0,0.20978254]
[1750716148947,0.42586405,103890.0,103880.0,0.21940847]
[1750716149158,0.42586405,103890.0,103880.0,0.22903431]
[1750716149584,0.42586405,103890.0,103880.0,0.21940847]
[1750716149785,0.42586405,103890.0,103880.0,0.21940856]
[1750716149986,0.42586405,103890.0,103880.0,0.21940866]
[1750716150408,0.42586405,103890.0,103880.0,0.20821754]
[1750716150613,0.42586405,103890.0,103880.0,0.21784366]
[1750716150810,0.42586405,103890.0,103880.0,0.22746968]
[1750716151016,0.42586405,103890.0,103880.0,0.23709561]
[1750716151427,0.42586405,103890.0,103880.0,0.22746968]
[1750716152362,0.42586405,103890.0,103880.0,0.21784366]
[1750716152707,0.42586405,103890.0,103880.0,0.22746968]
[1750716153122,0.42586405,103890.0,103880.0,0.23709561]
[1750716153562,0.42586405,103890.0,103880.0,0.21784366]
[1750716154105,0.42586405,103890.0,103880.0,0.22746968]
[1750716154675,0.42586405,103890.0,103880.0,0.21784366]
[1750716155182,0.42586405,103890.0,103880.0,0.22746968]
[1750716155579,0.007,103890.0,103880.0,0.33739491]
[1750716156063,0.36286405,103890.0,103880.0,0.37979491]
[1750716156453,0.35986405,103890.0,103880.0,0.37979491]
[1750716156626,0.35686405,103890.0,103880.0,0.37979491]
[1750716156821,0.35686405,103890.0,103880.0,0.38079491]
[1750716157030,0.35586405,103890.0,103880.0,0.38079491]
[1750716157594,0.43953306,103900.0,103890.0,0.21176179]
[1750716157843,0.43953306,103900.0,103890.0,0.22138679]
[1750716158069,0.41996405,103900.0,103890.0,0.21176188]
[1750716158487,0.41996405,103900.0,103890.0,0.22138698]
[1750716159263,0.42096405,103900.0,103890.0,0.22138698]
[1750716159418,0.42096405,103900.0,103890.0,0.21176188]
[1750716159646,0.42096405,103900.0,103890.0,0.22138688]
[1750716159860,0.0651,103900.0,103890.0,0.23101189]
[1750716160062,0.001,103900.0,103890.0,0.33131128]
[1750716160265,0.002,103900.0,103890.0,1.28140023]
[1750716160489,0.002,103900.0,103890.0,0.56967213]
[1750716160710,0.002,103900.0,103890.0,1.62140023]
[1750716160927,0.001,103900.0,103890.0,1.62140023]
[1750716161370,0.001,103900.0,103890.0,1.64222236]
[1750716161596,0.001,103900.0,103890.0,1.97350236]
[1750716161797,0.0001,103920.0,103910.0,0.99484917]
[1750716162011,0.0001,103920.0,103910.0,0.94160451]
[1750716162421,0.0001,103920.0,103910.0,1.29746856]
[1750716163006,0.00014639,103920.0,103910.0,1.35346856]
[1750716163213,0.00014639,103920.0,103910.0,1.18062775]
[1750716163424,0.00014639,103920.0,103910.0,1.0270437]
[1750716163672,0.0041,103950.0,103930.0,0.01454085]
[1750716163895,0.00414639,103950.0,103940.0,0.55826062]
[1750716164116,0.00414639,103950.0,103940.0,0.89826062]
[1750716164342,0.00046059,103950.0,103940.0,1.65998872]
[1750716164789,0.00046059,103950.0,103940.0,1.70998872]
[1750716164957,0.0001,103960.0,103950.0,1.33598719]
[1750716165177,0.0001,103960.0,103950.0,1.49714743]
[1750716165597,0.0001,103960.0,103950.0,1.54714743]
[1750716165810,0.0001,103960.0,103950.0,0.83541933]
[1750716166001,0.0001,103960.0,103950.0,1.54714743]
[1750716166206,0.0001,103960.0,103950.0,0.83541933]
[1750716166413,0.0001,103960.0,103950.0,1.33363961]
[1750716166707,0.0001,103960.0,103950.0,1.32963961]
[1750716166918,0.0001,103960.0,103950.0,1.33763961]
[1750716167294,0.0001,103960.0,103950.0,1.32963961]
[1750716167707,0.0834092,103990.0,103980.0,0.63873611]
[1750716167909,0.08387313,103990.0,103980.0,0.7390355]
[1750716168139,0.07599601,103990.0,103980.0,0.7890355]
[1750716168356,0.0646,104040.0,104030.0,0.22108894]
[1750716168582,0.06473923,104040.0,104030.0,0.22108894]
[1750716168779,0.06473923,104040.0,104030.0,0.10029939]
[1750716169000,0.06473923,104040.0,104030.0,0.30216404]
[1750716169191,0.06473923,104040.0,104030.0,0.31177646]
[1750716169438,0.50895951,104040.0,104030.0,0.09929939]
[1750716169654,0.0628,104030.0,104020.0,0.22109661]
[1750716169882,0.0628,104030.0,104020.0,0.10029939]
[1750716169883,0.44422028,104030.0,104020.0,0.10029939]
[1750716170084,0.4028,104030.0,104020.0,0.10029939]
[1750716170287,0.02259429,104030.0,104020.0,0.20188359]
[1750716170492,0.0628,104030.0,104020.0,0.22111019]
[1750716170696,0.00723923,104040.0,104030.0,0.22108894]
[1750716170930,0.00723923,104040.0,104030.0,0.56600918]
[1750716171152,0.00723923,104040.0,104030.0,0.56100918]
[1750716171341,0.00723923,104040.0,104030.0,1.33992861]
[1750716171545,0.00023923,104040.0,104030.0,1.32436946]
[1750716171798,0.00023923,104040.0,104030.0,1.40556946]
[1750716171962,0.00023923,104040.0,104030.0,1.41018142]
[1750716172183,0.0001,104070.0,104060.0,0.23556605]
[1750716172369,0.0001,104070.0,104060.0,0.33486544]
[1750716172732,0.0001,104070.0,104060.0,0.33386544]
[1750716173154,0.0001,104070.0,104060.0,0.36232263]
[1750716173556,0.0001,104070.0,104060.0,0.36432263]
[1750716173982,0.00889336,104070.0,104060.0,0.36432263]
[1750716174499,0.00889336,104070.0,104060.0,0.83544572]
[1750716174961,0.00889336,104070.0,104060.0,1.01876572]
[1750716175162,0.00889336,104070.0,104060.0,0.57454544]
[1750716175365,0.01089336,104070.0,104060.0,1.09035972]
[1750716175977,0.01089336,104070.0,104060.0,1.11240444]
[1750716176179,0.01089336,104070.0,104060.0,1.58560602]
[1750716176378,0.01089336,104070.0,104060.0,2.03560602]
[1750716176598,0.002,104070.0,104060.0,2.03560602]
[1750716176755,0.002,104070.0,104060.0,1.90662472]
[1750716176959,0.0001,104080.0,104060.0,1.88035972]
[1750716177161,0.00023907,104080.0,104070.0,0.88006449]
[1750716177382,0.00023907,104080.0,104070.0,0.96902949]
[1750716177581,0.00023907,104080.0,104070.0,1.80923189]
[1750716177936,0.00023907,104080.0,104070.0,1.61501161]
[1750716178149,0.00016,104090.0,104080.0,1.03822358]
[1750716178370,0.00016,104090.0,104080.0,2.43690483]
[1750716178579,0.0001,104100.0,104090.0,1.53222263]
[1750716178842,0.0158187,104130.0,104120.0,1.01965897]
[1750716179057,0.0158187,104130.0,104120.0,1.80749864]
[1750716179058,0.01628246,104130.0,104120.0,1.80749864]
[1750716179275,0.01628246,104130.0,104120.0,1.55495966]
[1750716179504,0.01628246,104130.0,104120.0,1.53381766]
[1750716179716,0.01628246,104130.0,104120.0,0.80321977]
[1750716179931,0.01628246,104130.0,104120.0,1.00199608]
[1750716180148,0.01628246,104130.0,104120.0,0.95199608]
[1750716180359,0.01628246,104130.0,104120.0,0.95999608]
[1750716180781,0.01628246,104130.0,104120.0,0.71259608]
[1750716180989,0.01628246,104130.0,104120.0,1.40441636]
[1750716181203,0.01628246,104130.0,104120.0,1.89863664]
[1750716181389,0.01628246,104130.0,104120.0,1.98193664]
[1750716181645,0.01628246,104130.0,104120.0,1.5890254]
[1750716182073,0.01628246,104130.0,104120.0,0.75680512]
[1750716182293,0.01628246,104130.0,104120.0,1.00675608]
[1750716182604,0.01628246,104130.0,104120.0,1.20481636]
[1750716182856,0.01628246,104130.0,104120.0,0.69605523]
[1750716183101,0.01628246,104130.0,104120.0,0.54517523]
[1750716183530,0.01628246,104130.0,104120.0,0.60497523]
[1750716183755,0.01628246,104130.0,104120.0,0.35405523]
[1750716183976,0.01628246,104130.0,104120.0,0.60401523]
[1750716184648,0.01628246,104130.0,104120.0,0.61855608]
[1750716185123,0.01628246,104130.0,104120.0,0.61355608]
[1750716185365,0.01628246,104130.0,104120.0,0.61555608]
[1750716185565,0.01628246,104130.0,104120.0,0.61455608]
[1750716185781,0.01628246,104130.0,104120.0,0.61655608]
[1750716186218,0.01628246,104130.0,104120.0,0.36759608]
[1750716186488,0.07818246,104130.0,104120.0,0.54209523]
[1750716187164,0.07818246,104130.0,104120.0,0.35205523]
[1750716187643,0.07818246,104130.0,104120.0,0.35205532]
[1750716187842,0.07818246,104130.0,104120.0,0.35965897]
[1750716188265,0.07818246,104130.0,104120.0,0.31159358]
[1750716188476,0.064,104120.0,104110.0,0.48960714]
[1750716188696,0.064,104120.0,104110.0,0.33086233]
[1750716188908,0.064,104120.0,104110.0,0.31159827]
[1750716189123,0.064,104120.0,104110.0,0.31159836]
[1750716189340,0.064,104120.0,104110.0,0.32120312]
[1750716189576,0.064,104120.0,104110.0,0.32120303]
[1750716189770,0.064,104120.0,104110.0,0.31159836]
[1750716189994,0.0634,104110.0,104100.0,0.2016987]
[1750716190278,0.06212,104100.0,104090.0,0.20174801]
[1750716190485,0.06212,104100.0,104090.0,0.10029939]
[1750716190694,0.0318,104090.0,104080.0,0.20176767]
[1750716190907,0.0318,104090.0,104080.0,0.31167505]
[1750716191117,0.0318,104090.0,104080.0,0.32128276]
[1750716191331,0.47602028,104090.0,104080.0,0.10029939]
[1750716191545,0.0325,104080.0,104070.0,0.24988488]
[1750716191768,0.0325,104080.0,104070.0,0.35018427]
[1750716191998,0.38797294,104110.0,104100.0,0.22094027]
[1750716191999,0.0321,104110.0,104100.0,0.22094027]
[1750716192220,0.0341,104120.0,104110.0,0.22091905]
[1750716192442,0.002,104120.0,104110.0,1.24498039]
[1750716192663,0.0158187,104130.0,104120.0,0.57543869]
[1750716192881,0.0158187,104130.0,104120.0,1.35983836]
[1750716193095,0.01628246,104130.0,104120.0,1.35983836]
[1750716193548,0.0001,104160.0,104150.0,1.05279534]
[1750716193764,0.00023906,104160.0,104150.0,1.47125719]
[1750716193985,0.0001,104180.0,104170.0,0.57533266]
[1750716194271,0.0001,104180.0,104170.0,0.86607205]
[1750716194496,0.0001,104180.0,104170.0,0.6610912]
[1750716194718,0.0001,104180.0,104170.0,0.8517312]
[1750716194925,0.0001,104180.0,104170.0,0.5117312]
[1750716195561,0.0001,104180.0,104170.0,0.53027205]
[1750716195778,0.0001,104180.0,104170.0,0.5118112]
[1750716195779,1.201e-05,104180.0,104170.0,0.5118112]
[1750716195986,1.201e-05,104180.0,104170.0,0.5158112]
[1750716196217,1.201e-05,104180.0,104170.0,0.54910435]
[1750716196669,1.201e-05,104180.0,104170.0,0.5636452]
[1750716196896,1.201e-05,104180.0,104170.0,1.46668624]
[1750716197536,1.201e-05,104180.0,104170.0,0.9036452]
[1750716197750,1.201e-05,104180.0,104170.0,0.88886435]
[1750716197986,1.201e-05,104180.0,104170.0,0.9034052]
[1750716199111,1.201e-05,104180.0,104170.0,0.69838435]
[1750716199342,1.201e-05,104180.0,104170.0,0.88886435]
[1750716199792,1.201e-05,104180.0,104170.0,0.9034052]
[1750716200669,1.201e-05,104180.0,104170.0,0.88886435]
[1750716201353,1.201e-05,104180.0,104170.0,1.46644624]
[1750716201846,1.201e-05,104180.0,104170.0,1.51644624]
[1750716202094,1.201e-05,104180.0,104170.0,1.46644624]
[1750716202309,1.201e-05,104180.0,104170.0,0.9534052]
[1750716202750,1.201e-05,104180.0,104170.0,0.74838435]
[1750716202958,1.201e-05,104180.0,104170.0,1.00242435]
[1750716203210,1.201e-05,104180.0,104170.0,1.58000624]
[1750716204711,1.201e-05,104180.0,104170.0,1.0169652]
[1750716204950,1.201e-05,104180.0,104170.0,1.63000624]
[1750716205187,0.1,104190.0,104180.0,1.3002525]
[1750716205426,0.2,104200.0,104190.0,1.27264943]
[1750716205693,0.0159787,104230.0,104220.0,0.57522673]
[1750716205926,0.0159787,104230.0,104220.0,1.57732716]
[1750716205928,0.01611771,104230.0,104220.0,1.57732716]
[1750716206150,0.01611771,104230.0,104220.0,1.26735165]
[1750716206381,0.00358987,104230.0,104220.0,1.87317438]
[1750716206648,0.0001,104290.0,104270.0,0.20138491]
[1750716206925,0.0001,104290.0,104280.0,1.50004019]
[1750716207170,0.0001,104290.0,104280.0,2.87410621]
[1750716207171,0.0005633,104290.0,104280.0,2.87410621]
[1750716207410,0.0005633,104290.0,104280.0,2.49988419]
[1750716207647,0.00211,104310.0,104300.0,0.57505747]
[1750716207887,0.00224893,104310.0,104300.0,1.4510459]
[1750716208127,0.00224893,104310.0,104300.0,1.5010459]
[1750716208369,0.00224893,104310.0,104300.0,0.75855686]
[1750716208619,0.0158187,104340.0,104330.0,1.18803509]
[1750716208837,0.0158187,104340.0,104330.0,0.99481344]
[1750716209072,0.0158187,104340.0,104330.0,0.99549344]
[1750716209282,0.0158187,104340.0,104330.0,0.72529344]
[1750716209554,0.0158187,104340.0,104330.0,0.38529344]
[1750716209771,0.0158187,104340.0,104330.0,0.32870912]
[1750716209772,0.0809187,104340.0,104330.0,0.32870912]
[1750716209997,0.0809187,104340.0,104330.0,0.33829344]
[1750716210218,0.0809187,104340.0,104330.0,0.32375277]
[1750716210440,0.64395974,104340.0,104330.0,0.07171812]
[1750716210666,0.57885974,104340.0,104330.0,0.27300231]